bitfinex/quotes_ETHUSD_20250329
["timestamp","ask_amount","ask_price","bid_price","bid_amount"]
[1743217446191,0.8025,1899.4,1899.0,5.26575]
[1743217446507,0.8025,1899.4,1898.9,5.26619]
[1743217446701,0.8025,1899.4,1899.1,5.26563]
[1743217447311,0.8025,1899.4,1898.9,6.03022]
[1743217447489,4.08318175,1899.4,1898.9,6.03022]
[1743217447685,4.08318175,1899.4,1898.9,11.899322]
[1743217447915,4.08318175,1899.4,1898.9,6.633242]
[1743217448713,0.8025,1899.4,1899.1,5.26548]
[1743217449426,0.8025,1899.4,1898.9,11.899222]
[1743217449588,3.28068175,1899.2,1898.9,0.603022]
[1743217449781,3.28068175,1899.0,1898.5,10.53428]
[1743217450106,3.28068175,1899.0,1898.6,5.26703]
[1743217450281,3.28068175,1899.0,1898.5,5.26711]
[1743217450481,0.8025,1898.9,1898.3,5.26768]
[1743217450699,0.8025,1898.9,1898.4,11.061738]
[1743217450881,0.8025,1898.9,1898.4,5.794188]
[1743217451288,0.8025,1898.9,1898.4,11.061658]
[1743217451507,0.8025,1898.9,1898.4,5.794188]
[1743217451711,3.28068175,1898.5,1897.7,0.7642]
[1743217452008,3.28068175,1897.9,1896.9,0.7642]
[1743217452211,6.0408864,1897.9,1897.6,5.26962]
[1743217452397,0.8025,1898.0,1897.7,5.796372]
[1743217452598,0.8025,1898.0,1897.7,0.526962]
[1743217452798,0.8025,1898.0,1897.6,5.26978]
[1743217453012,0.8025,1898.0,1897.7,5.26941]
[1743217453319,0.8025,1898.0,1897.6,5.26978]
[1743217453517,0.8025,1898.0,1897.7,5.26943]
[1743217453883,6.0408864,1898.2,1897.9,5.26898]
[1743217454082,6.0408864,1898.2,1898.0,0.526898]
[1743217454282,6.0408864,1898.2,1897.9,5.26898]
[1743217454980,6.0408864,1898.2,1897.8,5.26918]
[1743217455215,6.0408864,1898.2,1897.7,0.7642]
[1743217455382,6.0408864,1898.2,1897.9,5.26884]
[1743217455890,0.8025,1898.4,1898.0,5.26857]
[1743217456088,0.8025,1898.4,1898.0,1.053732]
[1743217456295,0.8025,1898.4,1897.8,5.2691]
[1743217456600,0.8025,1898.4,1897.9,5.26898]
[1743217457207,0.8025,1898.4,1898.0,5.26864]
[1743217457509,0.8025,1898.4,1898.0,5.26868]
[1743217457713,0.8025,1898.4,1898.0,10.53721]
[1743217457912,6.07022,1898.4,1897.8,5.2691]
[1743217458243,3.28068175,1898.3,1897.9,5.26896]
[1743217458714,3.28068175,1898.3,1897.8,6.41088]
[1743217458914,3.28068175,1898.3,1897.8,6.41102]
[1743217459216,0.8025,1898.4,1897.9,5.26895]
[1743217459421,6.0702,1898.4,1897.8,6.41094]
[1743217459626,3.28068175,1898.3,1897.8,5.26911]
[1743217459823,3.28068175,1898.3,1897.8,10.53822]
[1743217459989,3.28068175,1898.3,1897.9,5.26891]
[1743217460190,0.8025,1898.4,1898.1,5.2683]
[1743217460905,0.8025,1898.4,1898.0,5.26869]
[1743217461106,0.8025,1898.4,1898.0,5.872389]
[1743217461815,6.07015,1898.4,1898.0,0.603699]
[1743217462134,8.54920175,1898.1,1897.5,10.53985]
[1743217462286,3.28068175,1898.1,1897.6,5.26966]
[1743217463285,0.8162,1898.2,1897.9,5.26887]
[1743217463917,0.8162,1898.2,1897.8,5.26911]
[1743217464084,0.8162,1898.2,1897.8,11.592054]
[1743217464988,0.8162,1898.2,1897.8,6.322944]
[1743217465191,0.8162,1898.2,1897.9,5.26895]
[1743217465623,6.0408864,1898.4,1898.0,5.26856]
[1743217465818,6.0408864,1898.4,1898.1,0.05267759]
[1743217466006,0.8162,1898.8,1898.4,5.26759]
[1743217466527,0.8162,1898.8,1898.6,5.26681]
[1743217466899,9.32156815,1899.1,1898.6,5.26681]
[1743217467099,0.8162,1899.0,1898.6,5.26681]
[1743217467302,6.0408864,1899.1,1898.7,0.05266425]
[1743217467503,6.0408864,1899.1,1898.8,5.26648]
[1743217467715,0.8162,1899.2,1898.8,5.26648]
[1743217469125,0.8162,1899.2,1898.9,5.26607]
[1743217469330,0.8162,1899.2,1898.9,0.526607]
[1743217469631,0.8162,1899.2,1898.9,5.792707]
[1743217472126,0.8162,1899.2,1898.9,0.526607]
[1743217472428,10.10396815,1899.4,1898.6,6.1343]
[1743217472608,15.36878815,1899.4,1898.8,5.26626]
[1743217472926,15.36878815,1899.4,1898.8,10.53251]
[1743217473328,15.36878815,1899.4,1898.9,5.26619]
[1743217473631,15.36878815,1899.4,1898.8,10.53262]
[1743217473831,15.36878815,1899.4,1898.8,11.585882]
[1743217474931,15.36878815,1899.4,1898.9,5.26614]
[1743217475233,6.8232864,1899.4,1899.0,5.26586]
[1743217476032,0.7824,1899.4,1899.0,5.26586]
[1743217476626,0.7824,1899.4,1899.0,10.53166]
[1743217476833,0.7824,1899.4,1899.1,1.053166]
[1743217477063,0.7824,1899.4,1899.0,5.2658]
[1743217477221,0.7824,1899.4,1899.0,10.53162]
[1743217477421,0.7824,1899.4,1899.0,5.2658]
[1743217477651,0.7824,1899.4,1898.7,5.81676]
[1743217477856,0.7824,1899.6,1899.1,5.26546]
[1743217478153,0.7824,1899.6,1899.2,0.526546]
[1743217478450,0.7824,1899.6,1899.2,5.791816]
[1743217478649,0.7824,1899.6,1899.3,5.26497]
[1743217478867,0.7824,1899.9,1899.8,5.26371]
[1743217479069,6.0408864,1900.1,1900.0,5.26315]
[1743217479225,0.7824,1900.5,1900.1,5.26288]
[1743217479421,16.6447164,1900.9,1900.0,3.0]
[1743217479422,0.7824,1900.7,1900.3,5.26213]
[1743217479621,0.7824,1900.7,1900.3,0.526213]
[1743217480062,0.7824,1900.7,1900.4,5.26184]
[1743217480263,6.8232864,1900.9,1900.4,5.26184]
[1743217480426,12.0839764,1900.9,1900.3,6.599303]
[1743217480619,6.8232864,1900.9,1900.4,5.26204]
[1743217480823,6.8232864,1900.9,1900.4,6.4481743]
[1743217481152,12.0839564,1900.9,1900.4,1.1861343]
[1743217481353,5.26177,1900.6,1900.0,0.8108]
[1743217481657,0.7824,1900.5,1900.0,5.26313]
[1743217482655,0.7824,1900.5,1899.9,38.48522]
[1743217482958,0.7824,1900.5,1900.0,5.26314]
[1743217483425,6.0442,1900.5,1899.9,43.74849]
[1743217483626,11.30624,1900.5,1900.0,4.374849]
[1743217483931,5.26205,1900.4,1900.0,4.374849]
[1743217484552,5.26235,1900.3,1899.9,27.876]
[1743217484737,0.7824,1900.1,1899.9,27.876]
[1743217484941,0.7824,1900.1,1899.6,5.26412]
[1743217485664,5.26333,1900.0,1899.4,5.26463]
[1743217485964,6.8232864,1900.1,1899.5,5.26453]
[1743217486130,6.8232864,1900.1,1899.6,5.26411]
[1743217486960,12.0861664,1900.1,1899.5,5.26439]
[1743217487562,5.26327,1900.0,1899.5,5.26439]
[1743217487762,5.26358,1899.9,1899.4,1.052945]
[1743217487932,5.26358,1899.9,1899.2,33.9862]
[1743217487933,0.7598,1899.5,1899.2,27.864]
[1743217488445,6.02446,1899.5,1899.2,27.864]
[1743217488853,5.26509,1899.3,1898.7,9.04484]
[1743217489167,5.26509,1899.3,1898.7,16.276922]
[1743217489368,5.26509,1899.3,1898.7,8.010312]
[1743217489528,5.26539,1899.2,1898.7,8.010312]
[1743217489964,5.26509,1899.3,1898.7,8.010292]
[1743217490139,14.58641815,1899.4,1898.8,5.26634]
[1743217490339,14.58641815,1899.4,1898.8,6.5940032]
[1743217490541,5.26514,1899.3,1898.8,1.3276632]
[1743217490740,5.26514,1899.3,1898.7,6.04473]
[1743217490951,14.58641815,1899.4,1898.8,5.26648]
[1743217491152,19.85142815,1899.4,1898.8,5.26648]
[1743217491767,14.58641815,1899.4,1898.8,10.53278]
[1743217492064,19.85138815,1899.4,1898.8,5.2663]
[1743217492267,19.85138815,1899.4,1898.8,5.87075]
[1743217492665,19.85138815,1899.4,1898.8,11.1371]
[1743217492959,6.0408864,1899.4,1898.9,5.26596]
[1743217493161,11.3057364,1899.4,1898.9,5.26596]
[1743217493545,6.0408864,1899.4,1899.0,5.26589]
[1743217493938,11.3057364,1899.4,1898.9,5.26596]
[1743217494144,11.3057364,1899.4,1898.9,5.853001]
[1743217494437,11.3057364,1899.4,1898.9,11.119091]
[1743217494638,11.3057364,1899.4,1898.9,5.853001]
[1743217494639,6.0408864,1899.4,1898.9,5.853001]
[1743217494970,6.0408864,1899.4,1898.9,11.119091]
[1743217495267,11.3057264,1899.4,1898.9,11.119071]
[1743217495448,11.3057264,1899.4,1898.9,5.853001]
[1743217495648,11.3057264,1899.4,1898.9,11.119091]
[1743217496165,11.3057264,1899.4,1899.0,1.1119091]
[1743217496370,6.0408864,1899.4,1899.0,6.3776291]
[1743217496566,6.0408864,1899.4,1899.0,11.6434191]
[1743217496739,6.0408864,1899.4,1899.0,6.3776291]
[1743217496941,6.0408864,1899.4,1899.3,5.26509]
[1743217497171,0.8125,1899.7,1899.3,0.526509]
[1743217497368,0.8125,1899.7,1899.4,5.26463]
[1743217497570,3.28068175,1899.6,1899.0,6.4289091]
[1743217497875,8.54510175,1899.6,1899.0,11.6946591]
[1743217498164,8.54510175,1899.6,1899.0,16.9604191]
[1743217498373,3.28068175,1899.6,1899.1,1.69604191]
[1743217498570,0.8125,1899.3,1899.0,1.1119091]
[1743217498761,0.8125,1899.3,1899.0,5.26581]
[1743217499571,0.8125,1899.5,1899.1,5.26542]
[1743217500300,0.8125,1899.5,1899.2,5.31786489]
[1743217500444,0.8125,1899.7,1899.3,5.26498]
[1743217500641,0.8125,1899.7,1899.3,6.32326449]
[1743217500843,6.07652,1899.7,1899.3,1.05828449]
[1743217501077,6.07652,1899.7,1899.2,5.26522]
[1743217501992,5.2647,1899.5,1899.0,3.0]
[1743217502200,6.07664,1899.7,1899.0,8.2657]
[1743217502385,5.26428,1899.6,1899.1,5.26552]
[1743217502679,5.26428,1899.6,1898.8,1.79386577]
[1743217502680,5.26466,1899.5,1898.9,5.26599]
[1743217502885,5.26466,1899.5,1899.0,0.526599]
[1743217503094,5.26466,1899.5,1899.0,5.792509]
[1743217503782,8.54496175,1899.6,1899.1,5.26552]
[1743217504187,3.28068175,1899.6,1899.2,5.26531]
[1743217504785,6.07659,1899.7,1899.2,5.26531]
[1743217504997,6.07659,1899.7,1899.2,6.318393]
[1743217505203,0.8125,1899.7,1899.3,5.31766712]
[1743217505491,0.8125,1899.7,1899.3,5.26502]
[1743217505689,0.8125,1899.7,1899.3,10.52995]
[1743217505855,0.8125,1899.7,1899.3,5.26493]
[1743217506056,0.8125,1899.7,1899.3,0.6318013]
[1743217506858,0.8125,1899.7,1899.4,0.05264265]
[1743217507259,0.8125,1899.7,1899.4,5.31723265]
[1743217507671,0.8125,1899.7,1899.4,5.26459]
[1743217507866,9.32156815,1899.9,1899.5,5.26447]
[1743217508078,10.13286815,1899.9,1899.5,5.790917]
[1743217509065,10.13286815,1899.9,1899.5,0.526447]
[1743217509466,10.13286815,1899.9,1899.6,5.26406]
[1743217509467,6.0408864,1899.9,1899.6,5.26406]
[1743217509789,6.0408864,1899.9,1899.5,5.790967]
[1743217510000,5.26317,1900.0,1899.5,5.790967]
[1743217510291,3.28068175,1900.1,1899.6,5.8433367]
[1743217510462,8.54357175,1900.1,1899.6,5.8433367]
[1743217510665,5.26317,1900.0,1899.6,0.5790967]
[1743217510870,8.54357175,1900.1,1899.6,5.8433467]
[1743217511062,13.80662175,1900.1,1899.6,5.8433467]
[1743217511259,8.54357175,1900.1,1899.7,0.58433467]
[1743217511559,13.80656175,1900.1,1899.7,0.58433467]
[1743217511786,8.54357175,1900.1,1899.7,0.58433467]
[1743217512386,5.26339,1900.0,1899.4,5.26458]
[1743217512766,13.80659175,1900.1,1899.5,10.52877]
[1743217512961,8.54357175,1900.1,1899.5,10.52877]
[1743217513182,13.80657175,1900.1,1899.5,10.52877]
[1743217513499,6.8521864,1900.5,1899.6,6.0651]
[1743217513697,4.09198175,1900.9,1900.2,5.26238]
[1743217514006,4.09198175,1900.9,1900.2,5.26246]
[1743217514007,5.26112,1900.8,1900.2,5.26246]
[1743217514596,4.09198175,1900.9,1900.3,5.26216]
[1743217514796,0.8113,1900.9,1900.5,5.26151]
[1743217515000,0.8113,1900.9,1900.6,5.26129]
[1743217515184,6.0408864,1901.0,1900.7,10.52229]
[1743217515370,6.0408864,1901.0,1900.7,5.26108]
[1743217516087,6.0408864,1901.0,1900.8,5.26079]
[1743217516400,6.0408864,1901.0,1900.7,5.26108]
[1743217516597,6.0408864,1901.0,1900.7,10.52217]
[1743217516817,6.0408864,1901.0,1900.8,5.26091]
[1743217517013,6.0408864,1901.0,1900.8,11.28353]
[1743217517220,6.0408864,1901.0,1900.8,6.02262]
[1743217518997,6.0408864,1901.0,1900.8,0.7619]
[1743217519205,5.26109,1900.8,1900.2,5.26238]
[1743217519408,0.60408864,1900.9,1900.1,4.88450905]
[1743217519592,5.86481864,1900.9,1900.3,5.26211]
[1743217519794,0.60408864,1900.9,1900.4,5.26197]
[1743217520014,0.60408864,1900.9,1900.1,10.14732905]
[1743217520015,6.8697864,1901.0,1900.6,5.26126]
[1743217520492,6.8697864,1901.0,1900.6,5.26128]
[1743217520828,6.0408864,1901.0,1900.6,5.26128]
[1743217521374,6.0408864,1901.0,1900.5,0.8314]
[1743217521592,6.0408864,1901.0,1900.7,5.26108]
[1743217521794,6.0408864,1901.0,1900.7,5.787188]
[1743217522497,6.0408864,1901.0,1900.7,5.787178]
[1743217523120,6.0408864,1901.0,1900.7,11.048268]
[1743217523513,6.0408864,1901.0,1900.8,5.26088]
[1743217523719,6.0408864,1901.0,1900.8,10.52158]
[1743217523901,6.0408864,1901.0,1900.9,1.052158]
[1743217524094,6.0408864,1901.0,1900.8,5.2607]
[1743217524489,6.0408864,1901.0,1900.7,5.787308]
[1743217524790,6.0408864,1901.0,1900.7,5.787258]
[1743217525212,6.08879,1901.2,1900.7,5.787258]
[1743217526820,17.3886964,1901.4,1900.9,5.26059]
[1743217527122,5.25957,1901.3,1900.9,1.883529]
[1743217527423,5.25957,1901.3,1900.9,0.8314]
[1743217527609,10.51936,1901.3,1900.9,0.8314]
[1743217527918,5.25957,1901.3,1900.9,0.8314]
[1743217528415,10.51925,1901.3,1900.8,5.26068]
[1743217528617,5.25987,1901.2,1900.7,6.09261]
[1743217528823,12.1290664,1901.4,1900.8,5.870081]
[1743217529020,6.8697864,1901.4,1901.0,5.26036]
[1743217529229,6.8697864,1901.4,1901.0,5.31295896]
[1743217529521,6.8697864,1901.4,1901.1,5.25996]
[1743217529694,6.0408864,1901.4,1901.1,5.25996]
[1743217529894,6.0408864,1901.4,1901.2,0.525996]
[1743217530894,6.0408864,1901.4,1901.0,10.52042]
[1743217531228,0.8289,1901.6,1900.9,6.03221]
[1743217531429,0.825,1901.8,1901.4,5.25927]
[1743217531638,0.825,1901.8,1901.4,5.31185635]
[1743217531848,0.825,1901.8,1901.4,5.25927]
[1743217532136,5.25795,1901.9,1901.5,0.83927431]
[1743217532722,5.25822,1901.8,1901.5,0.83927431]
[1743217532897,5.25822,1901.8,1901.5,0.31334731]
[1743217533097,5.25795,1901.9,1901.5,0.31334731]
[1743217533298,5.25795,1901.9,1901.4,5.25921]
[1743217533599,5.25795,1901.9,1901.6,0.30885017]
[1743217533830,5.25795,1901.9,1901.5,0.30924996]
[1743217534000,5.25817,1901.8,1901.7,0.30845042]
[1743217534202,5.25817,1901.8,1901.6,0.30824474]
[1743217534426,5.25795,1901.9,1901.7,0.30784499]
[1743217534601,10.51603,1901.9,1901.7,0.30784499]
[1743217534803,5.2583,1901.8,1901.3,7.09673241]
[1743217534997,5.2583,1901.8,1901.4,0.70967324]
[1743217535641,10.51609,1901.9,1901.4,5.96894324]
[1743217535937,5.25818,1901.8,1901.4,0.70967324]
[1743217536447,10.5165,1901.8,1901.4,0.70967324]
[1743217536742,5.25818,1901.8,1901.4,0.70967324]
[1743217536917,6.08282,1902.0,1901.4,0.76225843]
[1743217537114,5.25792,1901.9,1901.3,1.83718241]
[1743217537318,6.08277,1902.0,1901.4,5.259]
[1743217537945,0.825,1902.0,1901.5,5.2588]
[1743217538144,0.825,1902.0,1901.6,5.25861]
[1743217538307,11.2982764,1902.1,1901.6,5.25852]
[1743217538505,11.2982764,1902.1,1901.7,0.525852]
[1743217538711,6.0408864,1902.1,1901.7,5.784242]
[1743217539405,6.0408864,1902.1,1901.7,6.555842]
[1743217539606,11.2983564,1902.1,1901.7,1.297452]
[1743217539811,11.2983564,1902.1,1901.7,0.7716]
[1743217540038,16.5559364,1902.1,1901.7,0.7716]
[1743217540202,5.25789,1902.0,1901.3,4.06558241]
[1743217540403,5.25801,1901.9,1901.4,0.7716]
[1743217540749,0.825,1901.8,1901.4,6.03077]
[1743217540915,0.825,1901.8,1901.5,0.603077]
[1743217541246,5.25801,1901.9,1901.5,0.603077]
[1743217541446,0.825,1902.0,1901.5,5.861837]
[1743217541648,5.25794,1901.9,1901.5,0.603077]
[1743217541950,6.08278,1902.0,1901.5,5.862017]
[1743217542146,11.34059,1902.0,1901.6,0.5862017]
[1743217542314,6.08278,1902.0,1901.6,0.5862017]
[1743217543146,5.258,1901.9,1901.6,0.5862017]
[1743217543364,0.825,1902.0,1901.6,5.2585]
[1743217543517,0.825,1902.0,1901.7,0.05257883]
[1743217543723,0.825,1902.0,1901.6,5.2585]
[1743217543922,0.825,1902.0,1901.5,5.862017]
[1743217544121,6.08278,1902.0,1901.5,5.862017]
[1743217544337,6.08278,1902.0,1901.6,0.5862017]
[1743217545541,5.25822,1901.8,1901.5,0.603077]
[1743217545742,5.25822,1901.8,1901.4,0.7716]
[1743217546069,5.25822,1901.8,1901.2,10.48358]
[1743217546070,0.8129,1901.7,1901.1,27.84]
[1743217546366,6.07267,1901.3,1901.1,27.84]
[1743217546664,0.8129,1901.5,1901.1,33.09989]
[1743217546868,0.8129,1901.5,1901.2,3.309989]
[1743217547672,5.25845,1901.7,1901.2,8.569729]
[1743217547875,5.2589,1901.6,1901.2,3.309989]
[1743217552378,6.07135,1901.7,1901.2,8.569669]
[1743217552743,0.8129,1901.7,1901.3,5.25952]
[1743217552943,5.25851,1901.7,1901.4,0.525952]
[1743217553241,5.25885,1901.6,1901.2,3.309989]
[1743217553653,5.2594,1901.4,1901.1,27.84]
[1743217553841,5.25957,1901.3,1901.1,27.84]
[1743217554553,5.2594,1901.4,1901.1,27.84]
[1743217554754,10.51892,1901.4,1901.1,27.84]
[1743217555076,10.51885,1901.4,1901.1,27.84]
[1743217555479,5.2594,1901.4,1901.1,27.84]
[1743217555654,5.2594,1901.4,1901.1,30.624]
[1743217556384,5.25967,1901.3,1901.1,27.84]
[1743217556683,5.25928,1901.4,1901.1,27.84]
[1743217557662,5.25877,1901.6,1901.1,33.10006]
[1743217557877,5.25877,1901.6,1901.1,33.09998]
[1743217558565,5.25921,1901.5,1901.1,27.84]
[1743217558763,5.25928,1901.4,1901.2,1.46645493]
[1743217558948,5.25907,1901.5,1901.2,1.46645493]
[1743217560287,5.25873,1901.6,1901.2,1.46645493]
[1743217560468,6.07135,1901.7,1901.3,0.7859]
[1743217560883,5.25874,1901.6,1901.3,0.7859]
[1743217561387,5.25908,1901.5,1901.3,0.7859]
[1743217561541,5.25908,1901.5,1901.1,0.7859]
[1743217561746,5.25908,1901.5,1901.1,6.04597]
[1743217561978,5.25908,1901.5,1901.2,0.604597]
[1743217563980,5.25908,1901.5,1901.1,0.7859]
[1743217564651,5.25908,1901.5,1901.1,6.046]
[1743217565546,5.25877,1901.6,1901.2,5.2597]
[1743217565970,14.61140637,1901.7,1901.2,5.2597]
[1743217566676,5.25877,1901.6,1901.2,5.2597]
[1743217566881,5.25877,1901.6,1901.3,0.52597]
[1743217567087,5.25877,1901.6,1901.1,6.31177131]
[1743217567381,5.25877,1901.6,1901.2,5.25979]
[1743217567984,5.25925,1901.5,1901.1,1.05167131]
[1743217568181,5.25944,1901.4,1901.1,1.05167131]
[1743217568485,5.25925,1901.5,1901.1,1.05167131]
[1743217568681,5.25925,1901.5,1901.1,6.94283444]
[1743217569355,5.25874,1901.6,1901.2,5.25981]
[1743217570083,5.25923,1901.5,1901.1,1.68286444]
[1743217571085,5.25923,1901.5,1901.1,6.94293444]
[1743217571281,5.25873,1901.6,1901.1,6.94277444]
[1743217571487,10.51764,1901.6,1901.1,6.94277444]
[1743217571708,10.51764,1901.6,1901.2,0.69427744]
[1743217571911,5.25902,1901.5,1901.2,0.69427744]
[1743217572481,5.25902,1901.5,1901.1,6.31158131]
[1743217572685,5.25975,1901.3,1900.9,0.7859]
[1743217572982,5.25975,1901.3,1900.9,6.04654]
[1743217573173,5.25933,1901.4,1900.9,6.04654]
[1743217573389,5.25933,1901.4,1900.9,6.0464]
[1743217573578,5.25873,1901.6,1901.1,5.25997]
[1743217573879,5.25873,1901.6,1901.1,5.25994]
[1743217574382,10.51763,1901.6,1901.1,5.25994]
[1743217574565,5.25904,1901.5,1901.1,5.25994]
[1743217574765,5.25904,1901.5,1901.1,6.372436]
[1743217574965,5.25904,1901.5,1901.1,1.112496]
[1743217576070,0.7983,1901.3,1901.0,0.60464]
[1743217576588,6.058,1901.3,1901.0,0.60464]
[1743217576789,6.058,1901.3,1900.9,1.84550893]
[1743217576991,0.48845169,1901.2,1900.9,1.84550893]
[1743217577189,5.26025,1901.1,1900.8,28.447261]
[1743217577398,14.28979806,1901.2,1900.8,28.447261]
[1743217577575,9.02967806,1901.2,1900.8,28.447261]
[1743217577772,0.48845169,1901.1,1900.9,2.8447261]
[1743217578972,0.48845169,1901.0,1900.9,2.8447261]
[1743217579606,5.74883169,1901.0,1900.8,27.838]
[1743217579761,0.48845169,1901.0,1900.8,27.838]
[1743217579962,0.48845169,1900.9,1900.8,27.838]
[1743217580804,0.48845169,1900.9,1900.8,33.09894]
[1743217581002,0.48845169,1900.9,1900.8,37.04231479]
[1743217581566,0.48845169,1900.9,1900.8,37.84251479]
[1743217582366,12.0983364,1901.5,1901.0,5.26025]
[1743217582578,12.0983364,1901.5,1901.0,10.52049]
[1743217582802,12.0983364,1901.5,1901.0,5.26024]
[1743217582969,12.0983364,1901.5,1901.1,0.526024]
[1743217583178,17.3575764,1901.5,1901.1,0.526024]
[1743217583496,17.3574964,1901.5,1901.1,0.526024]
[1743217584704,6.0408864,1901.5,1901.1,0.526024]
[1743217584999,6.0408864,1901.5,1901.2,6.05983]
[1743217585498,11.3001164,1901.5,1901.0,6.0604]
[1743217585707,5.25939,1901.4,1901.0,6.0604]
[1743217585870,5.25939,1901.4,1901.0,0.8002]
[1743217586203,5.25939,1901.4,1901.0,6.06057]
[1743217586400,5.25939,1901.4,1901.1,0.606057]
[1743217587475,11.3000764,1901.5,1901.0,11.32072]
[1743217587701,11.3000764,1901.5,1901.1,5.2601]
[1743217588673,11.3000764,1901.5,1901.0,6.06036]
[1743217589075,6.0408864,1901.5,1901.2,5.25966]
[1743217589304,3.28126637,1901.4,1900.8,37.84238479]
[1743217589605,0.7983,1901.3,1900.9,3.78423848]
[1743217589976,5.25961,1901.3,1900.9,9.04487848]
[1743217590178,10.51876,1901.4,1900.9,9.04487848]
[1743217591506,10.51876,1901.4,1900.9,10.12577997]
[1743217591796,10.12045277,1901.5,1901.1,5.25996]
[1743217591797,12.0982164,1901.5,1901.1,5.25996]
[1743217592001,6.0408864,1901.5,1901.1,0.525996]
[1743217592207,6.0408864,1901.5,1901.3,5.25945]
[1743217592394,6.0408864,1901.5,1901.2,11.27168]
[1743217592577,6.0408864,1901.5,1901.3,5.2594]
[1743217592778,6.8726864,1901.9,1901.4,0.05258989]
[1743217592982,6.08928,1902.1,1901.7,5.2583]
[1743217593401,6.08928,1902.1,1901.6,6.01088]
[1743217593584,5.25764,1902.0,1901.6,6.01088]
[1743217593806,7.55205564,1902.1,1901.6,6.01088]
[1743217594180,7.55213564,1902.1,1901.6,0.7522]
[1743217594385,7.55213564,1902.1,1901.6,6.01079]
[1743217594610,6.08936,1902.1,1901.6,6.01079]
[1743217594779,6.08936,1902.1,1901.7,5.25842]
[1743217594978,6.08927,1902.1,1901.6,6.01079]
[1743217595180,5.25777,1902.0,1901.7,0.28015795]
[1743217595493,6.08927,1902.1,1901.6,6.0108]
[1743217595687,5.25789,1901.9,1901.8,0.27975825]
[1743217595896,5.25805,1901.9,1901.7,0.28015795]
[1743217596210,5.25853,1901.7,1901.4,1.06423584]
[1743217596512,5.25853,1901.7,1901.5,0.2809575]
[1743217597312,14.62954637,1901.8,1901.5,0.2809575]
[1743217597505,14.62952637,1901.8,1901.5,0.2809575]
[1743217597804,14.62952637,1901.8,1901.3,5.25938]
[1743217597805,5.25872,1901.6,1901.3,1.02975599]
[1743217598007,5.25868,1901.7,1901.4,0.28135733]
[1743217598186,5.25873,1901.6,1901.3,1.02975599]
[1743217598403,5.25873,1901.6,1901.4,0.28135733]
[1743217598590,5.25868,1901.7,1901.3,1.02975599]
[1743217598788,5.25868,1901.7,1901.3,2.25988359]
[1743217599409,5.25868,1901.7,1901.3,1.2301276]
[1743217599610,5.25888,1901.6,1901.2,6.01181]
[1743217600207,5.25859,1901.7,1901.2,7.05622256]
[1743217600375,10.5172,1901.7,1901.2,7.05622256]
[1743217601010,5.25859,1901.7,1901.3,5.2595]
[1743217601210,5.25859,1901.7,1901.2,7.05622256]
[1743217601510,10.51727,1901.7,1901.2,7.76184482]
[1743217602110,5.25877,1901.6,1901.2,7.76184482]
[1743217602609,5.25877,1901.6,1901.2,7.76205482]
[1743217603225,5.2596,1901.3,1901.0,0.8163]
[1743217603508,11.34823,1901.3,1900.9,3.78423848]
[1743217603674,11.34819,1901.3,1900.9,3.78423848]
[1743217603878,6.0885,1901.3,1900.9,1.06866606]
[1743217604080,6.08777,1901.6,1901.2,5.25959]
[1743217604376,5.2587,1901.7,1901.3,6.07572]
[1743217604574,10.51733,1901.7,1901.3,0.8163]
[1743217604775,5.25876,1901.6,1901.3,0.8163]
[1743217605316,0.4871184,1901.6,1901.0,0.8122]
[1743217605516,5.25995,1901.2,1900.8,33.8232]
[1743217605821,4.05906637,1901.3,1900.8,33.8232]
[1743217605822,5.26041,1901.0,1900.8,27.838]
[1743217606696,9.02867477,1901.1,1900.8,27.838]
[1743217606894,5.26039,1901.0,1900.8,27.838]
[1743217607093,5.7474084,1901.1,1900.8,27.838]
[1743217607815,5.7476084,1901.0,1900.8,27.838]
[1743217608469,9.31972637,1900.9,1900.8,27.838]
[1743217608584,5.26101,1900.8,1900.4,3.0]
[1743217609098,5.26101,1900.8,1900.4,8.26197]
[1743217609305,5.26101,1900.8,1900.4,3.0]
[1743217610229,3.28126637,1900.7,1900.2,0.8122]
[1743217610429,8.54317637,1900.5,1900.1,27.838]
[1743217611082,0.48628948,1900.4,1900.1,27.838]
[1743217611714,0.48628948,1900.4,1900.1,33.10086]
[1743217612237,0.48628948,1900.4,1900.1,33.10071]
[1743217612407,0.7778,1900.6,1900.3,5.26219]
[1743217612614,8.54248637,1900.7,1900.3,5.26219]
[1743217612929,5.26152,1900.6,1900.1,33.10083]
[1743217613496,0.48570549,1900.5,1900.1,33.10083]
[1743217614258,5.26152,1900.6,1900.1,33.10083]
[1743217615541,0.7778,1900.5,1900.1,33.10083]
[1743217616552,6.03961,1900.5,1900.1,27.838]
[1743217616731,7.9487994,1900.5,1900.1,27.838]
[1743217616905,7.9487994,1900.5,1899.7,5.26386]
[1743217616906,0.7778,1900.1,1899.7,5.26386]
[1743217617640,0.7778,1900.1,1899.7,5.26385]
[1743217617822,0.7778,1900.1,1899.8,5.2635]
[1743217618011,0.7778,1900.1,1899.9,5.26338]
[1743217618346,0.7606,1900.3,1899.9,5.26338]
[1743217618641,0.7606,1900.3,1899.8,6.316235]
[1743217618812,6.02299,1900.3,1899.8,5.2635]
[1743217619017,13.80666637,1900.2,1899.7,5.26396]
[1743217619342,8.54387637,1900.2,1899.7,5.26396]
[1743217619518,5.26275,1900.2,1899.7,5.2638]
[1743217619847,10.52561,1900.2,1899.7,6.33168227]
[1743217620135,0.7606,1900.3,1899.9,5.26336]
[1743217620528,6.02295,1900.3,1899.9,5.26336]
[1743217621639,11.28553,1900.3,1899.8,5.26344]
[1743217621942,6.02295,1900.3,1899.8,10.52698]
[1743217622343,6.02295,1900.3,1899.9,5.26342]
[1743217623120,11.28541,1900.3,1899.8,5.26344]
[1743217623310,6.02295,1900.3,1899.9,5.26337]